{"text_format":"1","workbook":"xlsx","n_sheets":7,"sheets":["TEST - BUP","Hoja3","TEST- ANGE","Hoja1","Instrucciones","IndicesIPC","Hoja2"],"not_rendered":{"charts":0,"images":4,"macros":1,"external_links":1,"defined_names":79,"comments":0,"pivot_tables":0},"unopened":[],"bounds":{"document_bytes":16777216,"sheet_cells":100000,"rows_first":2000,"rows_last":500,"rows_between":2000,"halvings":0,"cell_chars":16384,"cell_head_chars":4096},"cells_cut":0,"cells_raw":0,"read":"whole","date_system":"1900"}

{"sheet":"TEST - BUP","index":0,"n_rows":44,"n_cols":32,"rows_kept":44,"cut":false,"hidden":false,"merged":[[0,3,0,15],[1,3,1,15],[2,12,2,15],[9,7,10,8],[16,8,17,8],[2,3,2,4],[2,6,2,7],[2,8,2,10],[4,3,4,5],[5,3,5,5],[6,3,6,5],[7,3,7,5],[10,2,10,5],[16,5,17,5],[13,2,13,4],[16,4,17,4],[7,7,7,8],[9,2,9,5],[16,12,16,13],[16,14,16,15],[11,2,11,4],[16,10,16,11],[16,9,17,9],[25,3,25,13],[29,4,29,5],[13,7,13,8],[12,2,12,4],[16,3,17,3],[16,7,17,7],[16,6,17,6],[11,7,12,8],[16,2,17,2],[15,2,15,15],[34,4,34,5],[37,2,37,7],[37,8,37,15],[36,2,36,15],[38,8,38,11],[43,2,43,4],[43,5,43,7],[38,2,38,4],[39,2,39,4],[38,5,38,7],[39,5,39,7],[40,2,42,4],[40,5,42,7],[43,8,43,11],[38,12,38,15],[43,12,43,15],[39,12,39,15],[40,8,42,11],[40,12,42,15],[39,8,39,11]]}
[null,null,null,"TEST DE DETERIORO DEL VALOR DE LOS ACTIVOS ASOCIADOS A LOS ACUERDOS DE CONCESIÓN\nMODO DE TRANSPORTE PORTUARIO"]
[null,null,null,"GESTIÓN ADMINISTRATIVA Y FINANCIERA"]
[null,null,null,"CÓDIGO",null,"GADF-F-095","VERSIÓN",null,2,null,null,"FECHA","2023-09-28"]
[]
[null,null,"Contrato de Concesión No: "]
[null,null,"Proyecto:"]
[null,null,"NIT:"]
[null,null,"Fecha de evaluación "]
[]
[null,null,"FASE 1  -  TEST",null,null,null,null,"INDICIO"]
[null,null,"Contestar todas las preguntas de acuerdo con el estado de los activos correspondientes a Bienes de Uso Público: Infraestructura en servicio, en construcción y dragados capital. \n\nPara los activos cuya capacidad de prestar servicios es = 0, no se debe realizar evaluación de indicios de deterioro, este activo debe darse de baja. ",null,null,null,null,null,null,null,null,null,null,null,null,null,null,null,null,null,null,null,null,null,null,null,null,"Anexo",null,null,null,"ANI"]
[null,null,"Indicios de deterioro por daños físicos o capacidad de prestación de servicio",null,null,"SI/NO",null,"Si alguna de las respuestas fue afirmativa, se considera que SI existe indicio de deterioro, de lo contrario NO",null,null,null,null,null,null,null,null,null,null,null,null,null,null,null,null,null,null,null,"1. INFRAESTRUCTURA EN SERVICIO",null,null,null,"Concesionario"]
[null,1,"¿Se dispone de evidencia de deterioro originado por daño físico del activo y no se espera su reparación en un periodo inferior a 12 meses?",null,null,"NO",null,null,null,null,null,null,null,null,null,null,null,null,null,null,null,null,null,null,null,null,null,"2.INFRAESTRUCTURA EN CONSTRUCCION"]
[null,2,"¿Se dispone de evidencia que permita determinar que el activo ha perdido significativamente su capacidad para prestar servicios, originado en daño físico, a largo plazo (más de 12 meses)?",null,null,"NO",null,{"$f":"+IF(AND(F13=\"NO\",F14=\"NO\"),\"NO\",\"SI\")","v":"NO"},null,null,null,null,null,null,null,null,null,null,null,null,null,null,null,null,null,null,null,"4.DRAGADOS - CAPITAL"]
[null,"1 y 2"]
[null,"1 y 2","FASE  2   -  INFORMACIÓN PARA LA DETERMINACION DEL VALOR DEL SERVICIO RECUPERABLE"]
[null,null,"Anexo","Clase","Ítem de Inversión","Detalle de Ítem de Inversión\n","Unidad de activo","Costo historico del activo (COP)","Fecha puesta en Servicio/ operación\n(dd/mm/aaaa)","Proporción  de la parte dañada (%)","Indicio de deterioro fue identificado en el activo",null,"Costo de Reposición\n",null,"Costo de Rehabilitación\n"]
[null,null,null,null,null,null,null,null,null,null,"Daños físicos ","Pérdida en capacidad de prestación de servicios","Aplica","Valor Costo de Reposición (COP)","Aplica ","Valor Costo de Rehabilitación (COP)"]
[null,null,null,null,null,null,null,null,null,null,null,null,{"$f":"+IF(OR(K19=\"SI\",L19=\"SI\"),\"Aplica\",\"N/A\")","v":"N/A"},null,{"$f":"+IF(OR(K19=\"SI\",L19=\"SI\"),\"Aplica\",\"N/A\")","v":"N/A"}]
[null,null,null,null,null,null,null,null,null,null,null,null,{"$f":"+IF(OR(K20=\"SI\",L20=\"SI\"),\"Aplica\",\"N/A\")","v":"N/A"},null,{"$f":"+IF(OR(K20=\"SI\",L20=\"NO\"),\"Aplica\",\"N/A\")","v":"N/A"}]
[null,null,null,null,null,null,null,null,null,null,null,null,"N/A",null,{"$f":"+IF(OR(K21=\"SI\",L21=\"NO\"),\"Aplica\",\"N/A\")","v":"N/A"}]
[null,null,null,null,null,null,null,null,null,null,null,null,{"$f":"+IF(OR(K22=\"SI\",L22=\"SI\"),\"Aplica\",\"N/A\")","v":"N/A"},null,{"$f":"+IF(OR(K22=\"SI\",L22=\"NO\"),\"Aplica\",\"N/A\")","v":"N/A"}]
[null,null,null,null,null,null,null,null,null,null,null,null,"N/A",null,"N/A"]
[null,null,null,null,null,null,null,null,null,null,null,null,"N/A",null,"N/A"]
[]
[null,null,"FIRMAS"]
[]
[]
[null,null,null,"Firma Representante legal del concesionario"]
[null,null,null,"Nombre:"]
[null,null,null,null,null,null,null,null,"Firma Contador Público del concesionario"]
[null,null,null,null,null,null,null,null,"Nombre:"]
[null,null,null,"Interventor del Contrato de Concesión  (en caso que aplique)",null,null,null,null,"T.P. No."]
[null,null,null,"Nombre:"]
[null,null,null,"Cargo: "]
[]
[null,null,"REVISIÓN DOCUMENTAL AGENCIA NACIONAL DE INFRAESTRUCTURA (ANI)"]
[null,null,"Revisado por:",null,null,null,null,null,"Aprobado por:"]
[null,null,"Aspectos técnicos",null,null,"Aspectos Financieros",null,null,"Aspectos técnicos",null,null,null,"Aspectos Financieros"]
[null,null,"Nombre:",null,null,"Nombre:",null,null,"Nombre:",null,null,null,"Nombre:"]
[null,null,"Firma:",null,null,"Firma:",null,null,"Firma:",null,null,null,"Firma:"]
[]
[]
[null,null,"Lider de seguimiento de proyecto",null,null,"Profesional Financiero",null,null,"Gerente Técnico  para el modo portuario",null,null,null,"Gerente Financiero para el modo portuario "]

{"sheet":"Hoja3","index":1,"n_rows":33,"n_cols":7,"rows_kept":33,"cut":false,"hidden":true,"merged":[[6,0,6,3],[13,0,13,3]]}
[]
["Anexo","1. INFRAESTRUCTURA EN SERVICIO","2.INFRAESTRUCTURA EN CONSTRUCCION","4.DRAGADOS - CAPITAL",{"$f":"+Bx","v":0}]
["Infraestructura.servicio","Inmuebles.por.Destinación.Servicio","Inmuebles.por.Destinación.construcción ","Red.Marítima.Dragados.Capital.en.Servicio",{"$f":"+Cx","v":0}]
["Infraestructura.construcción","Construcciones.en.Servicio","Construcciones.en.Construcción","Red.Marítima.Dragados.Capitales.En.construcción",{"$f":"+Ax","v":0}]
["Dragados.Capital"]
[]
["1. INFRAESTRUCTURA EN SERVICIO"]
["Construcciones.en.Servicio","Inmuebles.por.Destinación.Servicio","Dragados.Capital.en.Servicio"]
["Edificaciones","Terrenos.diferentes.a.rellenos","Red.Marítima.Dragados.Capital.en.Servicio"]
["Plantas.ductos.y.túneles","Edificaciones"]
["Redes.Líneas.y.cables"]
["Bienes.De.Uso.Público.En.Servicio.Concesiones"]
[]
["2.INFRAESTRUCTURA EN CONSTRUCCION"]
["Construcciones.en.Construcción","Inmuebles.por.Destinación.construcción ","Dragados.Capital.en.construcción "]
["Edificaciones","Edificaciones","Red.Marítima.Dragados.Capitales.En.construcción"]
["Plantas.ductos.y.túneles"]
["Redes.Líneas.y.Cables",null,null,{"$f":"+Cx","v":0}]
["Acueducto.y.canalización"]
["Líneas.y.Cables.de.Interconexión"]
[]
["Edificaciones","Plantas.ductos.y.túneles","Redes.Líneas.y.Cables","Acueducto.y.canalización","Líneas.y.Cables.de.Interconexión","Terrenos.diferentes.a.rellenos","Bienes.De.Uso.Público.En.Servicio.Concesiones"]
["Silos","Plantas de generación","Redes de recolección de aguas","Estaciones de bombeo","Redes de recolección de aguas","Terrenos","Terrenos (Rellenos)"]
["Casetas y campamentos","Plantas de tratamiento","Redes de distribución","Otras plantas, ductos y túneles","Redes de distribución",null,"Red Carretera"]
["Parqueaderos y garajes","Plantas de transmisión","Redes de aire",null,"Redes de aire",null,"Red Férrea"]
["Estanques","Plantas de distribución","Redere alimentación de gas",null,"Redere alimentación de gas"]
["Tanques de almacenamiento","Plantas de producción","Líneas y cables de transmisión"]
["Infraestructura portuaria (muelle)","Plantas de conducción","Líneas y cables de conducción"]
["Infraestructura férrea","Plantas de telecomunicaciones","Líneas y cables de telecomunicaciones"]
["Casas","Subestaciones y/o estaciones de regulación","Líneas y cables de interconexión"]
["Oficinas","Estaciones de bombeo","Otras redes, líneas y cables"]
["Almacenes","Otras plantas, ductos y túneles"]
["Locales ","Acueducto y canalización"]

{"sheet":"TEST- ANGE","index":2,"n_rows":65,"n_cols":23,"rows_kept":65,"cut":false,"hidden":false,"merged":[[19,1,19,7],[15,1,15,7],[17,1,17,7],[18,1,18,7],[57,1,57,22],[34,21,34,22],[33,11,33,13],[33,8,33,10],[34,8,35,8],[34,9,35,9],[34,10,35,10],[33,4,35,4],[33,18,33,22],[34,18,34,20],[33,1,35,1],[33,2,35,2],[20,1,20,7],[6,1,6,2],[22,1,26,18],[33,3,35,3],[64,16,64,22],[58,1,58,9],[60,4,60,9],[64,4,64,9],[58,10,58,22],[59,10,59,15],[60,10,60,15],[64,10,64,15],[64,1,64,3],[59,4,59,9],[59,1,59,3],[60,1,60,3],[15,11,15,13],[5,1,5,2],[7,1,7,2],[8,1,8,2],[5,3,5,5],[6,3,6,5],[7,3,7,5],[8,3,8,5],[13,11,14,13],[10,1,10,8],[13,1,13,7],[14,1,14,7],[12,1,12,7],[11,1,11,8],[10,11,12,13],[31,1,32,22],[33,16,34,17],[34,12,35,12],[34,13,35,13],[61,10,63,15],[60,16,60,22],[59,16,59,22],[61,1,63,3],[61,4,63,9],[33,5,35,5],[33,6,35,6],[33,7,35,7],[33,14,34,15],[34,11,35,11],[1,3,1,22],[2,3,2,22],[3,3,3,5],[3,7,3,10],[3,11,3,15],[3,19,3,22],[3,16,3,18]]}
[]
[null,null,null,"TEST DE DETERIORO DEL VALOR DE LOS ACTIVOS ASOCIADOS A LOS ACUERDOS DE CONCESIÓN\nMODO DE TRANSPORTE PORTUARIO"]
[null,null,null,{"$f":"[1]Datos_Generales!C5","v":"GESTIÓN ADMINISTRATIVA Y FINANCIERA"}]
[null,null,null,{"$f":"[1]Datos_Generales!C6","v":"CÓDIGO"},null,null,"GADF-F-095","VERSIÓN",null,null,null,2,null,null,null,null,{"$f":"[1]Datos_Generales!J6","v":"FECHA"},null,null,"2023-09-28"]
[]
[null,"Contrato de Concesión No: "]
[null,"Proyecto:",null,null,null,null,null,null,null,null,null,null,null,null,null,null,null,"SI"]
[null,"NIT:"]
[null,"Fecha de evaluación "]
[]
[null,"FASE 1  -  TEST",null,null,null,null,null,null,null,null,null,"INDICIO"]
[null,"Contestar todas las preguntas de acuerdo con el estado de los activos correspondientes a Activos no generadores de efectivo: Propiedades, planta y equipo y activos intangibles. \nPara los activos cuya capacidad de prestar servcios se = 0, no se debe realizar evaluación de indicios de deterioro, este activo debe darse de baja. "]
[null,"Indicios de deterioro internos",null,null,null,null,null,null,"SI/NO"]
[null,"¿Se identifican cambios significativos en el grado de utilización o la manera como se esperan usar las Propiedades, planta y equipo o intangibles  concesionados, los cuales afectarán desfavorablemente a largo plazo (más de 12 meses)?",null,null,null,null,null,null,null,"SI",null,"Si alguna de las respuestas fue afirmativa, se considera que SI existe indicio de deterioro, de lo contrario NO"]
[null,"¿Existe evidencia de obsolescencia o deterioro físico de las Propiedades, planta y equipo o intangibles  concesionados que trae como consecuencia pérdida en el potencial del servicio recuperable y que puedan afectar el normal funcionamiento a largo plazo (más de 12 meses)?",null,null,null,null,null,null,null,"NO"]
[null,"¿Existe evidencia sobre pérdida en la capacidad de prestación de servicios que afecte el normal funcionamiento de las Propiedades, planta y equipo o intangibles  concesionados, a largo plazo (más de 12 meses)?",null,null,null,null,null,null,null,null,null,{"$f":"IF(I14=\"SI\",I14,IF(I15=\"SI\",I15,IF(I16=\"SI\",I16,IF(I19=\"SI\",I19,IF(I21=\"si\",I21,IF(I20=\"SI\",I20,\"NO\"))))))","v":"NO"}]
[]
[null,"Indicios de deterioro externos",null,null,null,null,null,null,"SI/NO"]
[null,"¿Durante el periodo, han tenido lugar, cambios significativos con una incidencia adversa sobre el uso del activo, relacionados con el entorno legal, económico, político y/o ambiental, que puedan afectar el normal funcionamiento a largo plazo (más de 12 meses)?"]
[null,"¿Durante el periodo, existen cambios significativos con efecto desfavorable para el bien  relacionados con el entorno tecnológico que sean de alto impacto, que puedan afectar el normal funcionamiento a largo plazo (más de 12 meses)?"]
[null,"¿Durante el periodo, el valor de mercado del activo ha disminuido significativamente más que lo que se esperaría como consecuencia del paso del tiempo o de su uso normal del activo?"]
[]
[null,"Materialidad: Se consideran materiales los Equipos de Transporte, Tracción y Elevación (Terrestre, Marítimo y fluvial, De tracción de elevación), Maquinaria y Equipo (Maquinaria industrial, Herramientas y accesorios, Equipo para estaciones de bombeo, Equipo de centros de control,  Equipo de ayuda audiovisual, Equipo de seguridad y rescate Otra maquinaria y equipo), Equipos de Comunicación y Computación ( Equipo de comunicación, Equipo de computación y  Otros equipos de comunicación y computación)  y, los Activos intangibles (Softwares – concesiones, Activos intangibles en concesión) cuyo valor total por grupo de ítem de inversión sea igual o superior a 200 SMMLV."]
[]
[]
[]
[]
[]
[null,null,null,null,null,null,null,null,"SI"]
[]
[]
[null,"FASE  2   -  INFORMACIÓN PARA LA DETERMINACION DEL VALOR DEL SERVICIO RECUPERABLE"]
[]
[null,"Anexo","Clase","Ítem de Inversión","Detalle de Ítem de Inversión\n","Unidad de activo","Costo historico del activo (COP)","Fecha puesta en Servicio/ operación\n(dd/mm/aaaa)"," Indicio de deterioro interno identificado en el activo",null,null," Indicio de deterioro externo identificado en el activo",null,null,"Costo de reposición a nuevo ajustado\n",null,"Costo de reposición a nuevo ajustado y rehabilitación\n",null,"Valor de mercado menos costos de disposición"]
[null,null,null,null,null,null,null,null,"¿Se identifican cambios significativos en el grado de utilización o la manera como se esperan usar las\" PPYE\" o los \"AI\", los cuales afectarán desfavorablemente a largo plazo?","¿Existe evidencia de obsolescencia o deterioro físico de las Propiedades, planta y equipo o intangibles  concesionados que trae como consecuencia pérdida en el potencial del servicio y que afectan el normal funcionamiento a largo plazo ?","¿Existe evidencia sobre pérdida en la capacidad de prestación de servicios que afecte el normal funcionamiento, a largo plazo?","¿Durante el periodo, han tenido lugar, cambios significativos con una incidencia adversa sobre el uso del activo, relacionados con el entorno legal, económico, político y/o ambiental?","¿Durante el periodo, existen cambios significativos con efecto desfavorable para el bien  relacionados con el entorno tecnológico que sean de alto impacto?","¿Durante el periodo, el valor de mercado del activo ha disminuido significativamente más que lo que se esperaría como consecuencia del paso del tiempo o de su uso normal del activo?",null,null,null,null,"Valor de mercado",null,null,"Costo de disposición"]
[null,null,null,null,null,null,null,null,null,null,null,null,null,null,"Aplica","Valor Costo de Reposición (COP)","Aplica","Valor Costo de Rehabilitación (COP)"," Existiere Valor de Mercado","Aplica","Valor de Mercado (COP)","Aplica","Valor Costo de disposición (COP)"]
[null,null,null,null,null,null,null,null,null,null,null,null,null,null,{"$f":"+IF(OR($I37=$I$29,$J37=$I$29,$K37=$I$29,$L37=$I$29,$M37=$I$29,$N37=$I$29),\"Aplica\",\"N/A\")","v":"N/A"},null,{"$f":"+IF(OR(J37=$I$29,I37=$I$29),\"Aplica\",\"N/A\")","v":"N/A"},null,null,{"$f":"+IF(OR($I37=$R$7,$J37=$R$7,$J37=$R$7,$K37=$R$7,$L37=$R$7,$M37=$R$7,$N37=$R$7)*AND(S37=\"si\"),\"Aplica\",\"N/A\")","v":"N/A"},null,{"$f":"+IF(T37=\"Aplica\",\"Aplica\",\"N/A\")","v":"N/A"}]
[null,null,null,null,null,null,null,null,null,null,null,null,null,null,{"$f":"+IF(OR($I38=$I$29,$J38=$I$29,$K38=$I$29,$L38=$I$29,$M38=$I$29,$N38=$I$29),\"Aplica\",\"N/A\")","v":"N/A"},null,{"$f":"+IF(OR(J38=$I$29,I38=$I$29),\"Aplica\",\"N/A\")","v":"N/A"},null,null,{"$f":"+IF(OR($I38=$R$7,$J38=$R$7,$J38=$R$7,$K38=$R$7,$L38=$R$7,$M38=$R$7,$N38=$R$7)*AND(S38=\"si\"),\"Aplica\",\"N/A\")","v":"N/A"},null,{"$f":"+IF(T38=\"Aplica\",\"Aplica\",\"N/A\")","v":"N/A"}]
[null,null,null,null,null,null,null,null,null,null,null,null,null,null,"N/A",null,{"$f":"+IF(OR($J39=$I$29,$I39=$I$29),\"Aplica\",\"N/A\")","v":"N/A"},null,null,{"$f":"+IF(OR($I39=$R$7,$J39=$R$7,$J39=$R$7,$K39=$R$7,$L39=$R$7,$M39=$R$7,$N39=$R$7)*AND(S39=\"si\"),\"Aplica\",\"N/A\")","v":"N/A"},null,"N/A"]
[null,null,null,null,null,null,null,null,null,null,null,null,null,null,"N/A",null,"N/A",null,null,{"$f":"+IF(OR($I40=$R$7,$J40=$R$7,$J40=$R$7,$K40=$R$7,$L40=$R$7,$M40=$R$7,$N40=$R$7)*AND(S40=\"si\"),\"Aplica\",\"N/A\")","v":"N/A"},null,{"$f":"+IF(T40=\"Aplica\",\"Aplica\",\"N/A\")","v":"N/A"}]
[null,null,null,null,null,null,null,null,null,null,null,null,null,null,"N/A",null,"N/A",null,null,"N/A",null,"N/A"]
[null,null,null,null,null,null,null,null,null,null,null,null,null,null,"N/A",null,"N/A",null,null,"N/A",null,"N/A"]
[null,null,null,null,null,null,null,null,null,null,null,null,null,null,"N/A",null,"N/A",null,null,"N/A",null,"N/A"]
[null,null,null,null,null,null,null,null,null,null,null,null,null,null,"N/A",null,"N/A",null,null,"N/A",null,"N/A"]
[null,null,null,null,null,null,null,null,null,null,null,null,null,null,"N/A",null,"N/A",null,null,"N/A",null,"N/A"]
[null,null,null,null,null,null,null,null,null,null,null,null,null,null,"N/A",null,"N/A",null,null,"N/A",null,"N/A"]
[]
[null,"FIRMAS"]
[]
[]
[]
[]
[null,"Firma Representante legal del concesionario",null,null,null,null,null,"Firma Contador Público del concesionario",null,null,null,null,null,null,null,"Interventor del Contrato de Concesión  "]
[null,"Nombre:",null,null,null,null,null,"Nombre:",null,null,null,null,null,null,null,"(en caso que aplique)"]
[null,null,null,null,null,null,null,null,null,null,null,null,null,null,null,"Nombre:"]
[null,null,null,null,null,null,null,null,null,null,null,null,null,null,null,"Cargo: "]
[null,null,null,null,null,null,null,null,null,null,null,null,null,null,null,"T.P. No."]
[null,"REVISIÓN DOCUMENTAL AGENCIA NACIONAL DE INFRAESTRUCTURA (ANI)"]
[null,"Revisado por:",null,null,null,null,null,null,null,null,"Aprobado por:"]
[null,"Aspectos técnicos",null,null,"Aspectos Financieros",null,null,null,null,null,"Aspectos técnicos",null,null,null,null,null,"Aspectos Financieros"]
[null,"Nombre:",null,null,"Nombre:",null,null,null,null,null,"Nombre:",null,null,null,null,null,"Nombre:"]
[null,"Firma:",null,null,"Firma:",null,null,null,null,null,"Firma:"]
[]
[null,null,null,null,null,null,null,null,null,null,null,null,null,null,null,null,"Firma:"]
[null,"Lider de seguimiento de proyecto",null,null,"Profesional Financiero",null,null,null,null,null,"Gerente Técnico  para el modo portuario",null,null,null,null,null,"Gerente Financiero para el modo portuario "]

{"sheet":"Hoja1","index":3,"n_rows":31,"n_cols":5,"rows_kept":31,"cut":false,"hidden":true,"merged":[[0,2,0,3],[5,1,5,4],[11,1,11,4]]}
[null,null,"Clase"]
[null,"Anexo","PROPIEDADES.PLANTA.Y.EQUIPOS","SISTEMAS"]
[null,"P.P.Y.E","PROPIEDADES.PLANTA.Y.EQUIPOS","SISTEMAS.Activos.Intangibles"]
[null,"SISTEMAS"]
[]
[null,"ítem de inversión "]
[null,"PROPIEDADES.PLANTA.Y.EQUIPOS","SISTEMAS.Activos.Intangibles"]
[null,"Maquinaria.y.equipo","Activos.Intangibles"]
[null,"Equipos.de.transporte.tracción.y.elevación"]
[null,"Equipos.de.comunicación.y.computación"]
[]
[null,"Detalle de Ítem de Inversión\n"]
[null,"Maquinaria.y.equipo","Equipos.de.transporte.tracción.y.elevación","Equipos.de.comunicación.y.computación","Activos.Intangibles"]
[null,"Maquinaria industrial","Equipos de transporte Terrestre","Equipos de comunicación","Softwares - concesiones"]
[null,"Equipo para estaciones de bombeo","Equipo de transporte marítimo y fluvial","Equipos de computación","Activos intangibles en concesión"]
[null,"Equipo de centros de control","Equipo de tracción ","Otros equipos de comunicación y computación"]
[null,"Equipo de ayuda audiovisual","Equipos de elevación (grúas)"]
[null,"Equipo de seguridad y rescate"]
[null,"Otra maquinaria y equipo"]
[null,"Herramientas y accesorios"]
[]
[]
[null,null,"Enfoque","Aplica pregunta"]
[1,"¿Se identifican cambios significativos en el grado de utilización o la manera como se esperan usar las Propiedades, planta y equipo o intangibles  concesionados, los cuales afectarán desfavorablemente a largo plazo (más de 12 meses)?","Costo de reposición a nuevo ajustado","1,2,3, 4, 5 y 6"]
[2,"¿Existe evidencia de obsolescencia o deterioro físico de las Propiedades, planta y equipo o intangibles  concesionados que trae como consecuencia pérdida en el potencial del servicio recuperable y que puedan afectar el normal funcionamiento a largo plazo (más de 12 meses)?","Enfoque del costo de rehabilitación",2]
[3,"¿Existe evidencia sobre pérdida en la capacidad de prestación de servicios que afecte el normal funcionamiento de las Propiedades, planta y equipo o intangibles  concesionados, a largo plazo (más de 12 meses)?","Valor de mercado menos costos de disposición","1,2,3, 4, 5 y 6"]
[]
[null,"Indicios de deterioro externos"]
[4,"¿Durante el periodo, han tenido lugar, cambios significativos con una incidencia adversa sobre el uso del activo, relacionados con el entorno legal, económico, político y/o ambiental?"]
[5,"¿Durante el periodo, existen cambios significativos con efecto desfavorable para el bien  relacionados con el entorno tecnológico que sean de alto impacto?"]
[6,"¿Durante el periodo, el valor de mercado del activo ha disminuido significativamente más que lo que se esperaría como consecuencia del paso del tiempo o de su uso normal del activo?"]

{"sheet":"Instrucciones","index":4,"n_rows":52,"n_cols":3,"rows_kept":52,"cut":false,"hidden":false,"merged":[[1,1,1,2],[3,1,3,2],[4,1,4,2],[6,1,6,2],[15,1,15,2],[12,1,12,2],[14,1,14,2],[13,1,13,2],[16,1,16,2],[32,1,32,2],[35,1,35,2],[51,1,51,2],[47,1,47,2],[34,1,34,2],[33,1,33,2],[31,1,31,2],[29,1,29,2]]}
[]
[null,"INSTRUCCIONES PARA EL DILIGENCIAMIENTO DEL TEST DE DETERIORO DEL VALOR DE LOS ACTIVOS ASOCIADOS CON LOS ACUERDOS DE CONCESIÓN DEL MODO DE TRANSPORTE PORTUARIO"]
[]
[null,"       MATERIALIDAD BIENES DE USO PÚBLICO Y ACTIVOS NO GENERADORES DE EFECTIVO"]
[null,"De acuerdo con la naturaleza de las actividades desarrolladas y el que hacer del modo de transporte portuario, se definieron como materiales los bienes de uso público y los siguientes auxiliares directos de las subcuentas de Propiedades, planta y equipo y activos intangibles: Equipos de Transporte, Tracción y Elevación (Terrestre , Marítimo y fluvial, De tracción De elevación), Maquinaria y Equipo (Maquinaria industrial, Herramientas y accesorios, Equipo para estaciones de bombeo, Equipo de centros de control, Equipo de ayuda audiovisual, Equipo de seguridad y rescate, Otra maquinaria y equipo, Equipos de Comunicación y Computación), Activos intangibles, cuyo valor total por grupo de ítem de inversión sea igual o superior a 200 SMMLV, por sociedad portuaria. "]
[]
[null,"Diligencie el Test de los Bienes de usos público (Test BUP) y el Test de Activos no generadores de efectivo (Test ANGE) para las Propiedades, planta y equipos y activos intangibles que se consideren materiales. Para cada Test detalle la siguiente información:"]
[null,"Contrato de Concesión No: ","Identificar el N.º del Contrato que se ha otorgado a la Concesión."]
[null,"Proyecto:","Indicar nombre completo del proyecto."]
[null,"NIT:","Diligenciar el número de identificación tributaria NIT del concesionario."]
[]
[]
[null,"1. TEST BUP - TEST DE DETERIORO DE BIENES DE USO PÚBLICO - FASE 1 "]
[null,"La fase 1 del test de deterioro de bienes de uso público se realizará de manera global para la totalidad de los activos de bienes de uso público (Infraestructura en servicio, en construcción y dragados capital), es decir, un (1) test que comprenda todas las clasificaciones. Contestar todas las preguntas seleccionando Sí o No, según corresponda, en  caso de que todas las respuestas sean \"NO\", se concluirá que no se presentan indicios de deterioro y habrá finalizado el diligenciamiento del test.\nEn caso que alguna de las preguntas tenga una respuesta afirmativa valor \"SI\", se indicará valor \"SÍ\" en la celda \"INDICIO\" y se debe pasar a la fase 2 del test."]
[null,"2.TEST BUP - FASE 2- INFORMACIÓN PARA LA DETERMINACIÓN DEL VALOR DEL SERVICIO RECUPERABLE"]
[null,"En este cuadro se debe diligenciar la información de manera particular por unidad de activo al que se le identificó algún(os) indicio(s) de deterioro. "]
[null,"En caso de presentar indicios de deterioro se requiere que el concesionario allegue a la Agencia como evidencia para documentar y soportar la existencia de indicios del deterioro de valor, según aplique: i) opiniones de experto, a través de informes que documenten las evidencias del indicio de deterioro de valor de los activos Bienes de uso público y Activos no generadores de efectivo; ii) planos, fotografías, videos o declaraciones del personal acerca de la situación operativa de los activos cuyo deterioro físico se pretende probar; iii) indicadores de gestión; iv) y demás -soportes que la Agencia considere pertinentes para demostrar el referido deterioro."]
[null,"Anexo:","De la lista desplegable, Seleccione el anexo al cual corresponde el activo de infraestructura que presenta indicios de deterioro, tomando como base la información contenida en el Formato GCSP-F-011 \"INFORME DE INVERSIÓN DE CAPITAL PRIVADO EN BIENES DE USO PÚBLICO DEL MODO PORTUARIO SEGÚN EL MARCO NORMATIVO PARA ENTIDADES DEL GOBIERNO\" (Capitulo 4. detalle de inversión por unidad de activo:  Infraestructura en Servicio,Infraestructura en Construcción,Propiedad, Planta y Equipos, Dragados, sistemas)"]
[null,"Clase:","De la lista desplegable, Seleccione la clase a la cual corresponde el activo de infraestructura que presenta indicios de deterioro, tomando como base la información contenida en el Formato GCSP-F-011 \"INFORME DE INVERSIÓN DE CAPITAL PRIVADO EN BIENES DE USO PÚBLICO DEL MODO PORTUARIO SEGÚN EL MARCO NORMATIVO PARA ENTIDADES DEL GOBIERNO\""]
[null,"Ítem de Inversión:","De la lista desplegable, Seleccione el Ítem de inversión al cual corresponde el activo de infraestructura que presenta indicios de deterioro, como base la información contenida en el Formato GCSP-F-011 \"INFORME DE INVERSIÓN DE CAPITAL PRIVADO EN BIENES DE USO PÚBLICO DEL MODO PORTUARIO SEGÚN EL MARCO NORMATIVO PARA ENTIDADES DEL GOBIERNO\""]
[null,"Detalle de Ítem de Inversión","Seleccione el detalle de Ítem de inversión al cual corresponde el activo de infraestructura que presenta indicios de deterioro, tomando como base el Formato GCSP-F-011 \"INFORME DE INVERSIÓN DE CAPITAL PRIVADO EN BIENES DE USO PÚBLICO DEL MODO PORTUARIO SEGÚN EL MARCO NORMATIVO PARA ENTIDADES DEL GOBIERNO\""]
[null,"Unidad de activo","Describir la unidad de activo a la que se le identificó el indicio de deterioro."]
[null,"Costo historico del activo (COP):","Indique el valor de adquisición del activo o de la infraestructura que presenta indicios de deterioro, tomando como base la información contenida en el Formato GCSP-F-011 \"INFORME DE INVERSIÓN DE CAPITAL PRIVADO EN BIENES DE USO PÚBLICO DEL MODO PORTUARIO SEGÚN EL MARCO NORMATIVO PARA ENTIDADES DEL GOBIERNO\""]
[null,"Fecha puesta en Servicio/ operación:\n(dd/mm/aaaa)","Indique la fecha completa de puesta en servicios u operación del activo de infraestructura que presenta indicios de deterioro, tomando como base el Formato GCSP-F-011 \"INFORME DE INVERSIÓN DE CAPITAL PRIVADO EN BIENES DE USO PÚBLICO DEL MODO PORTUARIO SEGÚN EL MARCO NORMATIVO PARA ENTIDADES DEL GOBIERNO\""]
[null,"Proporción  de la parte dañada (%)","Indique la proporción o porcentaje (%) de la parte dañada con relación al activo total que presenta daño fisico o perdida de la capacidad para prestar servicios.  "]
[null,"Indicio de deterioro fue identificado en el activo","Seleccionar el valor \"SI\" o \"NO\" de acuerdo a las opciones indicadas o en ambas según aplique."]
[null,"Información para la determinación del valor del servicio recuperable (COP)","El concesionario deberá suministrar los datos de costo de reposición, costo de rehabilitación, valor de mercado si existiere y los costos de disposición. Con los datos indicados, la Agencia determinará si existe lugar al deterioro de activos. "]
[null,"Valor Costo de Reposición (COP)","Si \"Aplica\", Indique el valor en el que se incurriría en una fecha determinada para reponer la capacidad operativa del activo existente, caso contrario no diligenciar. "]
[null,"Valor Costo de Rehabilitación (COP)","Si \"Aplica\", Indique el valor en el que se incurriría en una fecha determinada para reponer la capacidad operativa del activo existente, caso contrario no diligenciar. "]
[null,"En caso de requerir mayor número de filas para detallar los activos con indicios de deterioro se debe solicitar al al Grupo Iinterno de Trabajo Financiero 1 (GITF1), la inclusión de las mismas en el formato"]
[]
[null,"3. TEST ANGE - TEST DE DETERIORO ACTIVOS NO GENERADORES DE EFECTIVO -  FASE 1"]
[null,"La fase 1 del test de deterioro de activos no generadores de efectivo se realizará de manera global para la totalidad de las propiedades, planta y equipo y, sistemas (Intangibles), es decir, un (1) test que comprenda todas las clasificaciones. Contestar todas las preguntas seleccionando Sí o No, según corresponda, en caso de que todas las respuestas sean \"NO\", se concluirá que no se presentan indicios de deterioro y habrá finalizado el diligenciamiento del test.\nEn caso que alguna de las preguntas tenga una respuesta afirmativa valor \"SI\", se indicará valor \"SÍ\" en la celda \"INDICIO\" y se debe pasar a la fase 2 del test."]
[null,"4.  TEST DE DETERIORO ACTIVOS NO GENERADORES DE EFECTIVO -  FASE 2 - INFORMACIÓN PARA LA DETERMINACIÓN DEL VALOR DEL SERVICIO RECUPERABLE"]
[null,"En este cuadro se debe diligenciar la información de manera particular por unidad de activo al que se le identificó algún(os) indicio(s) de deterioro. "]
[null,"En caso de presentar indicios de deterioro se requiere que el concesionario allegue a la Agencia como evidencia para documentar y soportar la existencia de indicios del deterioro de valor, según aplique: i) opiniones de experto, a través de informes que documenten las evidencias del indicio de deterioro de valor de los activos Bienes de uso público y Activos no generadores de efectivo; ii) planos, fotografías, videos o declaraciones del personal acerca de la situación operativa de los activos cuyo deterioro físico se pretende probar; iii) indicadores de gestión; iv) y demás -soportes que la Agencia considere pertinentes para demostrar el referido deterioro."]
[null,"Anexo:","De la lista desplegable, Seleccione el anexo al cual corresponde el activo de Propiedades, planta y equipos e intangibles que presenta indicios de deterioro, tomando como base la información contenida en el Formato GCSP-F-011 \"INFORME DE INVERSIÓN DE CAPITAL PRIVADO EN BIENES DE USO PÚBLICO DEL MODO PORTUARIO SEGÚN EL MARCO NORMATIVO PARA ENTIDADES DEL GOBIERNO\""]
[null,"Clase:","De la lista desplegable, Seleccione la clase a la cual corresponde el activo de Propiedades, planta y equipos e intangibles que presenta indicios de deterioro, tomando como base la infomación contenida en el Formato GCSP-F-011 \"INFORME DE INVERSIÓN DE CAPITAL PRIVADO EN BIENES DE USO PÚBLICO DEL MODO PORTUARIO SEGÚN EL MARCO NORMATIVO PARA ENTIDADES DEL GOBIERNO\""]
[null,"Ítem de Inversión:","De la lista desplegable, Seleccione el Ítem de inversión al cual corresponde el activo de Propiedades, planta y equipos e intangible que presenta indicios de deterioro, tomando como base el GCSP-F-011 \"INFORME DE INVERSIÓN DE CAPITAL PRIVADO EN BIENES DE USO PUBLICO DEL MODO PORTUARIO SEGÚN EL MARCO NORMATIVO PARA ENTIDADES DEL GOBIERNO\""]
[null,"Detalle de Ítem de Inversión\n(Unidad de activo):","Indique el detalle de Ítem de inversión al cual corresponde el activo de Propiedades, planta y equipos e intangible que presenta indicios de deterioro, tomando como base la infomación contenida en el Formato GCSP-F-011 \"INFORME DE INVERSIÓN DE CAPITAL PRIVADO EN BIENES DE USO PÚBLICO DEL MODO PORTUARIO SEGÚN EL MARCO NORMATIVO PARA ENTIDADES DEL GOBIERNO\""]
[null,"Unidad de activo","Describir la unidad de activo a la que se le identifico el indicio de deterioro."]
[null,"Valor de la Inversión Acumulada (COP):","Indique el valor del activo o valor de la inversión de Propiedades, planta y equipos e intangible que presenta indicios de deterioro, tomando como base la infomación contenida en el Formato GCSP-F-011 \"INFORME DE INVERSIÓN DE CAPITAL PRIVADO EN BIENES DE USO PÚBLICO DEL MODO PORTUARIO SEGÚN EL MARCO NORMATIVO PARA ENTIDADES DEL GOBIERNO\"."]
[null,"Fecha puesta en Servicio/ operación:\n(dd/mm/aaaa)","Indique la fecha completa de puesta en servicios u operación de activo de Propiedades, planta y equipos e intangible que presenta indicios de deterioro, tomando como base la infomación contenida en el Formato GCSP-F-011 \"INFORME DE INVERSIÓN DE CAPITAL PRIVADO EN BIENES DE USO PÚBLICO DEL MODO PORTUARIO SEGÚN EL MARCO NORMATIVO PARA ENTIDADES DEL GOBIERNO\"."]
[null,"Indicio de deterioro fue identificado en el activo (Interno/Externo)","Seleccionar el valor \"SI\" o \"NO\" de acuerdo a las opciones indicadas o en ambas según aplique."]
[null,"Información para la determinación del valor del servicio recuperable (COP)","El concesionario deberá suministrar los datos de costo de reposición, costo de rehabilitación, valor de mercado si existiere y los costos de disposición. Con los datos indicados, la Agencia determinará si existe lugar al deterioro de activos. "]
[null,"Valor Costo de Reposición (COP)","Si \"Aplica\", Indique el valor en el que se incurriría en una fecha determinada para reponer la capacidad operativa del activo existente, caso contrario no diligenciar. "]
[null,"Valor Costo de Rehabilitación (COP)","Si \"Aplica\", Indique el valor en el que se incurriría en una fecha determinada para reponer la capacidad operativa del activo existente, caso contrario no diligenciar. "]
[null,"Valor de mercado:"]
[null," Existiere Valor de Mercado","Indique \"SI\" o \"NO\" según aplique."]
[null,"Valor de Mercado (COP)","Si \"Aplica\" valor de mercado, indique el valor por el cual el activo puede ser intercambiado en una transacción realizada en condiciones de independencia mutua. Determinado mediante proveedores de precios, de una entidad pública o privada o de una persona con la idoneidad necesaria para establecer precios.  "]
[null,"Costo de disposición","Si \"Aplica\", indique el valor costos de carácter legal, timbres y otros impuestos, costos de desplazar los activos, los costos de desmantelamientos, comisión de intermediarios en la venta de activos (remates), entre otros, en los que se incurre para dejar el activo en condiciones para la venta. "]
[null,"En caso de requerir mayor número de filas para detallar los activos con indicios de deterioro se debe solicitar al Grupo Iinterno de Trabajo Financiero 1 (GITF1) la inclusión de las mismas en el formato."]

{"sheet":"IndicesIPC","index":5,"n_rows":26,"n_cols":26,"rows_kept":26,"cut":false,"hidden":true,"merged":[[25,0,25,6],[0,0,0,19],[2,0,3,19],[4,0,4,19],[23,0,23,7],[24,0,24,7]]}
[]
[]
["Total, Indice de Precios al Consumidor (IPC)"]
[]
["Índices - Serie de empalme\n2003 - 2021"]
[]
[]
[null,null,null,null,null,null,null,null,null,null,null,null,null,null,null,null,null,null,null,"Base Diciembre de 2018 = 100,00"]
["Mes",2003,2004,2005,2006,2007,2008,2009,2010,2011,2012,2013,2014,2015,2016,2017,2018,2019,2020,2021]
["Enero",50.42,53.54,56.45,59.02,61.8,65.510000000000005,70.209999999999994,71.69,74.12,76.75,78.28,79.95,83,89.19,94.07,97.53,100.6,104.24,105.91]
["Febrero",50.98,54.18,57.02,59.41,62.53,66.5,70.8,72.28,74.569999999999993,77.22,78.63,80.45,83.96,90.33,95.01,98.22,101.18,104.94,106.58]
["Marzo",51.51,54.71,57.46,59.83,63.29,67.040000000000006,71.150000000000006,72.459999999999994,74.77,77.31,78.790000000000006,80.77,84.45,91.18,95.46,98.45,101.62,105.53,107.12]
["Abril",52.1,54.96,57.72,60.09,63.85,67.510000000000005,71.38,72.790000000000006,74.86,77.42,78.989999999999995,81.14,84.9,91.63,95.91,98.91,102.12,105.7,107.76]
["Mayo",52.36,55.17,57.95,60.29,64.05,68.14,71.39,72.87,75.069999999999993,77.66,79.209999999999994,81.53,85.12,92.1,96.12,99.16,102.44,105.36,108.84,null,5,{"$f":"+V14*12","v":60},{"$f":"+V15/W14","v":1533333.3333333333},{"$f":"+X14*W15","v":1585061.2943077069}]
["Junio",52.33,55.51,58.18,60.48,64.12,68.73,71.349999999999994,72.95,75.31,77.72,79.39,81.61,85.21,92.54,96.23,99.31,102.71,104.97,108.78,null,92000000,{"$f":"+(T15/S19)","v":1.0337356267224176},{"$f":"+X14*9","v":13800000}]
["Julio",52.26,55.49,58.21,60.73,64.23,69.06,71.319999999999993,72.92,75.42,77.7,79.430000000000007,81.73,85.37,93.02,96.18,99.18,102.94,104.97,null,null,null,{"$f":"+V15*W15","v":95103677.65846242},{"$f":"+W16-X15","v":81303677.65846242},{"$f":"+W16/W14","v":1585061.2943077071},{"$f":"+Y16*9","v":14265551.648769364}]
["Agosto",52.42,55.51,58.21,60.96,64.14,69.19,71.349999999999994,73,75.39,77.73,79.5,81.900000000000006,85.78,92.73,96.32,99.3,103.03,104.96,null,null,null,null,null,null,{"$f":"+W16-Z16","v":80838126.009693056}]
["Septiembre",52.53,55.67,58.46,61.14,64.2,69.06,71.28,72.900000000000006,75.62,77.959999999999994,79.73,82.01,86.39,92.68,96.36,99.47,103.26,105.29,null,null,null,{"$f":"+V15-X15","v":78200000}]
["Octubre",52.56,55.66,58.6,61.05,64.2,69.3,71.19,72.84,75.77,78.08,79.52,82.14,86.98,92.62,96.37,99.59,103.43,105.23,null,null,null,null,null,{"$f":"+(V15-X15)*W15","v":80838126.009693056}]
["Noviembre",52.75,55.82,58.66,61.19,64.510000000000005,69.489999999999995,71.14,72.98,75.87,77.98,79.349999999999994,82.25,87.51,92.73,96.55,99.7,103.54,105.08]
["Diciembre",53.07,55.99,58.7,61.33,64.819999999999993,69.8,71.2,73.45,76.19,78.05,79.56,82.47,88.05,93.11,96.92,100,103.8,105.48]
[]
[]
["Fuente: DANE."]
["Nota: La diferencia en la suma de las variables, obedece al sistema de aproximación y redondeo."]
["Actualizado el 3 de julio de 2021"]

{"sheet":"Hoja2","index":6,"n_rows":9,"n_cols":2,"rows_kept":9,"cut":false,"hidden":true,"merged":[]}
[]
[null,"En construcción"]
[null,"En servicio"]
[]
[null,1]
[null,2]
[]
[null,"NO"]
[null,"SI"]